bitfinex/quotes_BTCUSD_20250616
["timestamp","ask_amount","ask_price","bid_price","bid_amount"]
[1750092231497,0.90450806,107980.0,107970.0,0.41277359]
[1750092231713,0.89524761,107980.0,107970.0,0.41277359]
[1750092232150,0.89724761,107980.0,107970.0,0.41277359]
[1750092232362,0.89424761,107980.0,107970.0,0.41277359]
[1750092232547,0.90124761,107980.0,107970.0,0.41277359]
[1750092232857,0.90124761,107980.0,107970.0,0.39425071]
[1750092233068,0.8919869,107980.0,107970.0,0.40351228]
[1750092233487,0.8919869,107980.0,107970.0,0.39425071]
[1750092233712,0.8827261,107980.0,107970.0,0.39421071]
[1750092233926,0.8827261,107980.0,107970.0,0.41273376]
[1750092234644,0.18222845,107980.0,107970.0,0.42199499]
[1750092234859,0.71276701,107980.0,107970.0,0.42199499]
[1750092236282,0.72202781,107980.0,107970.0,0.42199499]
[1750092236682,0.71276701,107980.0,107970.0,0.42199499]
[1750092236896,0.72202781,107980.0,107970.0,0.42199499]
[1750092237107,0.70672781,107980.0,107970.0,0.42199499]
[1750092237534,0.90120894,107980.0,107970.0,0.42199499]
[1750092237748,0.71296761,107980.0,107970.0,0.42199499]
[1750092238010,0.89818709,107980.0,107970.0,0.41273376]
[1750092238249,0.38016838,107980.0,107970.0,0.42199507]
[1750092238484,0.90144709,107980.0,107970.0,0.42199447]
[1750092238698,0.91070849,107980.0,107970.0,0.40347193]
[1750092239114,0.91070849,107980.0,107970.0,0.21307193]
[1750092239328,0.91070849,107980.0,107970.0,0.40339193]
[1750092239772,0.91070849,107980.0,107970.0,0.38486888]
[1750092239995,0.90144778,107980.0,107970.0,0.40339193]
[1750092240657,0.90144778,107980.0,107970.0,0.39413044]
[1750092241095,0.90144778,107980.0,107970.0,0.40339184]
[1750092241748,0.90144778,107980.0,107970.0,0.39413062]
[1750092241970,0.8829261,107980.0,107970.0,0.03925059]
[1750092242184,0.8829261,107980.0,107970.0,0.19033059]
[1750092242442,0.8829261,107980.0,107970.0,0.03925059]
[1750092242676,6.94524481,107980.0,107970.0,5.059e-05]
[1750092242915,7.11357659,107980.0,107970.0,5.059e-05]
[1750092243364,7.13830177,107980.0,107970.0,5.059e-05]
[1750092243797,6.89411255,107980.0,107970.0,5.059e-05]
[1750092244026,7.01350737,107980.0,107970.0,5.059e-05]
[1750092245335,7.01950737,107980.0,107970.0,5.059e-05]
[1750092246223,6.86838737,107980.0,107970.0,5.059e-05]
[1750092246456,7.01950737,107980.0,107970.0,5.059e-05]
[1750092246675,7.11565659,107980.0,107970.0,5.059e-05]
[1750092247143,0.05,107970.0,107950.0,0.03924]
[1750092247390,0.21310029,107930.0,107920.0,0.29976103]
[1750092247629,0.734379,107930.0,107920.0,0.32755852]
[1750092247846,0.54907362,107930.0,107920.0,0.32755843]
[1750092247999,0.53980845,107930.0,107920.0,0.33682395]
[1750092248214,0.73437883,107930.0,107920.0,0.34140395]
[1750092248423,0.743644,107930.0,107920.0,0.33213843]
[1750092248620,0.55833871,107930.0,107920.0,0.34140395]
[1750092248858,0.01853129,107920.0,107910.0,0.27907164]
[1750092249066,0.73439849,107920.0,107910.0,0.29291836]
[1750092249269,0.73439849,107920.0,107910.0,0.33215836]
[1750092249270,0.54907603,107920.0,107910.0,0.33215836]
[1750092249522,0.01853129,107920.0,107910.0,0.34142474]
[1750092249740,0.30012454,107930.0,107920.0,0.21312004]
[1750092249986,0.83066799,107930.0,107920.0,0.21770004]
[1750092250359,0.83066799,107930.0,107920.0,0.21770021]
[1750092250939,0.83066782,107930.0,107920.0,0.21770021]
[1750092251278,0.83993308,107930.0,107920.0,0.25694021]
[1750092251470,0.82140334,107930.0,107920.0,0.04382]
[1750092251733,0.83790334,107930.0,107920.0,0.03924]
[1750092251943,1.19666334,107930.0,107920.0,0.03924]
[1750092252334,0.00926629,107910.0,107900.0,0.23286381]
[1750092252466,0.54907835,107910.0,107900.0,0.40344389]
[1750092252670,0.75295185,107910.0,107900.0,0.203817]
[1750092252885,0.75988556,107910.0,107900.0,0.243057]
[1750092253093,0.84686077,107910.0,107900.0,0.23378951]
[1750092253307,0.84686077,107910.0,107900.0,0.25232441]
[1750092253743,0.64298727,107910.0,107900.0,0.25432441]
[1750092253980,0.63605331,107910.0,107900.0,0.26817164]
[1750092254220,0.64532003,107910.0,107900.0,0.26817164]
[1750092255164,0.64532003,107910.0,107900.0,0.27117164]
[1750092255165,0.63605322,107910.0,107900.0,0.27117164]
[1750092255388,0.56765318,107920.0,107910.0,0.22698617]
[1750092255591,0.74366436,107920.0,107910.0,0.22698617]
[1750092255801,0.75293048,107920.0,107910.0,0.22698617]
[1750092256001,0.74366496,107920.0,107910.0,0.20845333]
[1750092256209,0.74366496,107920.0,107910.0,0.21771988]
[1750092256410,0.74366496,107920.0,107910.0,0.22698634]
[1750092256628,0.54907638,107920.0,107910.0,0.23625272]
[1750092256830,0.54907638,107920.0,107910.0,0.23725272]
[1750092257040,0.74366496,107920.0,107910.0,0.23725272]
[1750092257254,0.83064103,107920.0,107910.0,0.20487333]
[1750092257467,0.83717508,107920.0,107910.0,0.19560661]
[1750092257759,0.85327508,107920.0,107910.0,0.19560661]
[1750092257985,0.85327508,107920.0,107910.0,0.2048735]
[1750092258199,0.02779938,107910.0,107900.0,0.19459572]
[1750092258408,0.55834472,107910.0,107900.0,0.23375598]
[1750092258611,0.56761161,107910.0,107900.0,0.26155828]
[1750092258811,0.56761161,107910.0,107900.0,0.25955828]
[1750092259040,0.82139371,107910.0,107900.0,0.2410239]
[1750092259247,0.82635371,107910.0,107900.0,0.24102391]
[1750092259458,0.84195371,107910.0,107900.0,0.24502391]
[1750092259867,0.84195371,107910.0,107900.0,0.2542914]
[1750092260065,0.82635371,107910.0,107900.0,0.2542914]
[1750092260927,0.82139371,107910.0,107900.0,0.23575633]
[1750092261147,0.8397201,107910.0,107900.0,0.04316]
[1750092261579,0.84879574,107910.0,107900.0,0.04316]
[1750092261984,0.87663974,107910.0,107900.0,0.04316]
[1750092262185,0.87663974,107910.0,107900.0,0.23778465]
[1750092262590,0.87663974,107910.0,107900.0,0.04316]
[1750092263416,0.35536103,107910.0,107900.0,0.22851681]
[1750092263681,0.87663974,107910.0,107900.0,0.23778465]
[1750092263879,0.87663974,107910.0,107900.0,0.04316]
[1750092264439,1.39791845,107910.0,107900.0,0.04316]
[1750092266466,1.39791845,107910.0,107900.0,0.004]
[1750092266734,1.41458345,107910.0,107900.0,0.04316]
[1750092267584,1.04434474,107910.0,107900.0,0.04316]
[1750092268308,7.59121809,107910.0,107900.0,0.004]
[1750092268523,0.22488967,107880.0,107870.0,0.03916]
[1750092268741,0.84241014,107880.0,107870.0,0.03916]
[1750092269212,0.02780961,107870.0,107860.0,0.26397871]
[1750092269426,0.02780961,107870.0,107860.0,0.30781871]
[1750092269865,0.06493159,107870.0,107860.0,0.30781871]
[1750092270083,0.07420183,107870.0,107860.0,0.30796046]
[1750092270551,0.06493159,107870.0,107860.0,0.30796046]
[1750092270755,0.027852,107870.0,107860.0,0.30796046]
[1750092270969,0.04639145,107870.0,107860.0,0.30796046]
[1750092271399,0.04639145,107870.0,107860.0,0.30996046]
[1750092271621,0.06493159,107870.0,107860.0,0.30068996]
[1750092271843,0.25961036,107870.0,107860.0,0.29141981]
[1750092272061,0.78088907,107870.0,107860.0,0.30069057]
[1750092272272,0.57694014,107870.0,107860.0,0.30996124]
[1750092272710,0.77161874,107870.0,107860.0,0.21537981]
[1750092272927,0.58621038,107870.0,107860.0,0.26381057]
[1750092273201,0.6823596,107870.0,107860.0,0.27308124]
[1750092273415,0.67308936,107870.0,107860.0,0.27308124]
[1750092273632,0.027852,107870.0,107860.0,0.30418124]
[1750092273852,0.027852,107870.0,107860.0,0.30745124]
[1750092274288,0.02212129,107890.0,107870.0,0.23971824]
[1750092274518,0.02212129,107890.0,107880.0,0.22959914]
[1750092274519,0.05565405,107890.0,107880.0,0.22959914]
[1750092274740,0.24102804,107890.0,107880.0,0.24213809]
[1750092274951,0.32041002,107890.0,107880.0,0.24213809]
[1750092275385,0.85095742,107890.0,107880.0,0.24213809]
[1750092276068,0.85095742,107890.0,107870.0,0.20394876]
[1750092276069,0.21319837,107880.0,107870.0,0.20394876]
[1750092276292,0.56762468,107880.0,107870.0,0.21321857]
[1750092276567,0.55835521,107880.0,107870.0,0.21321857]
[1750092276783,0.0370765,107880.0,107870.0,0.21321857]
[1750092277011,0.54908583,107880.0,107870.0,0.25237857]
[1750092277232,0.0370765,107880.0,107870.0,0.21321857]
[1750092277453,0.0370765,107880.0,107870.0,0.25237857]
[1750092277672,0.22346767,107880.0,107870.0,0.24310876]
[1750092277901,0.2141994,107880.0,107870.0,0.23383869]
[1750092278153,0.2049301,107880.0,107870.0,0.23383869]
[1750092278382,0.91386041,107880.0,107870.0,0.03916]
[1750092281938,0.92946041,107880.0,107870.0,0.03916]
[1750092282174,0.1946786,107870.0,107860.0,0.00014175]
[1750092282394,0.71595731,107870.0,107860.0,0.23399857]
[1750092282832,0.75308047,107870.0,107860.0,0.25254086]
[1750092283318,0.74381031,107870.0,107860.0,0.25254086]
[1750092283539,0.74381031,107870.0,107860.0,0.25354086]
[1750092283777,0.7751246,107870.0,107860.0,0.00114175]
[1750092284034,1.35689183,107870.0,107860.0,0.04030175]
[1750092284250,1.3790534,107870.0,107860.0,0.04130175]
[1750092284491,1.47520262,107870.0,107860.0,0.04130175]
[1750092284989,1.47520262,107870.0,107860.0,0.04030175]
[1750092285206,1.47520262,107870.0,107860.0,0.1865673]
[1750092285432,1.3800534,107870.0,107860.0,0.1865673]
[1750092285657,1.19464504,107870.0,107860.0,0.20410959]
[1750092286166,0.52228633,107870.0,107860.0,0.19483849]
[1750092286393,0.52228633,107870.0,107860.0,0.2041095]
[1750092286394,1.19468504,107870.0,107860.0,0.2041095]
[1750092287076,1.19468504,107870.0,107860.0,0.1855673]
[1750092287329,1.29083426,107870.0,107860.0,0.1855673]
[1750092288004,1.47624262,107870.0,107860.0,0.00014175]
[1750092288229,1.47624262,107870.0,107860.0,0.1855673]
[1750092288496,1.47624262,107870.0,107860.0,0.00014175]
[1750092289421,6.52624262,107870.0,107860.0,0.00014175]
[1750092290088,6.55393179,107870.0,107860.0,0.00014175]
[1750092292095,6.60393179,107870.0,107860.0,0.00014175]
[1750092292358,7.1252105,107870.0,107860.0,0.00014175]
[1750092292853,7.17673309,107870.0,107860.0,0.00014175]
[1750092293062,0.76968685,107840.0,107830.0,0.22466035]
[1750092293279,1.10240919,107840.0,107830.0,0.2251903]
[1750092293496,1.11529778,107840.0,107830.0,0.2251903]
[1750092293739,1.14316278,107840.0,107830.0,0.2251903]
[1750092293956,1.04952972,107840.0,107830.0,0.2251903]
[1750092294396,6.10152972,107840.0,107830.0,0.03971317]
[1750092294618,6.10152972,107840.0,107830.0,0.2251903]
[1750092295056,6.10317575,107840.0,107830.0,0.2251903]
[1750092295278,6.10517575,107840.0,107830.0,0.1859503]
[1750092295926,5.91971555,107840.0,107830.0,0.1859503]
[1750092296195,0.42309905,107840.0,107830.0,0.1859503]
[1750092296419,1.13599681,107840.0,107830.0,0.1859503]
[1750092296641,1.15199681,107840.0,107830.0,0.1859503]
[1750092296868,0.96653687,107840.0,107830.0,0.19522415]
[1750092297091,0.15790898,107840.0,107830.0,0.21377125]
[1750092297306,0.32909419,107840.0,107830.0,0.20449783]
[1750092297531,0.3383671,107840.0,107830.0,0.20449783]
[1750092297751,0.3383671,107840.0,107830.0,0.20449792]
[1750092297985,0.3383671,107840.0,107830.0,0.19522415]
[1750092298202,0.38153383,107840.0,107830.0,0.19522415]
[1750092298449,0.90445857,107840.0,107830.0,0.20449792]
[1750092298689,0.89518566,107840.0,107830.0,0.22304519]
[1750092298912,0.18054571,107840.0,107830.0,0.22304519]
[1750092299136,0.84072106,107840.0,107830.0,0.20449792]
[1750092299541,0.85453474,107840.0,107830.0,0.19522415]
[1750092299787,0.85453474,107840.0,107830.0,0.1859503]
[1750092299788,1.03704999,107840.0,107830.0,0.1859503]
[1750092300027,1.48042656,107840.0,107830.0,0.00047317]
[1750092300482,2.02549978,107840.0,107830.0,0.00047317]
[1750092300895,7.07549978,107840.0,107830.0,0.00047317]
[1750092301144,6.55257504,107840.0,107830.0,0.00047317]
[1750092301888,1.40236548,107840.0,107830.0,0.1859503]
[1750092302142,1.37484548,107840.0,107830.0,0.1859503]
[1750092302348,1.01884936,107840.0,107830.0,0.19522415]
[1750092302572,1.18124235,107840.0,107830.0,0.19522415]
[1750092302793,1.36670229,107840.0,107830.0,0.16896215]
[1750092303009,1.35742921,107840.0,107830.0,0.16896215]
[1750092303224,1.35742921,107840.0,107830.0,0.15960168]
[1750092303441,1.45357843,107840.0,107830.0,0.15960168]
[1750092303654,1.43503348,107840.0,107830.0,0.15960168]
[1750092303903,1.43957348,107840.0,107830.0,0.15960168]
[1750092304337,1.45811903,107840.0,107830.0,0.15960168]
[1750092305215,1.47321903,107840.0,107830.0,0.15951507]
[1750092306257,1.46394647,107840.0,107830.0,0.15951507]
[1750092306641,1.36779725,107840.0,107830.0,0.16878892]
[1750092306852,1.36779725,107840.0,107830.0,0.15951507]
[1750092307413,1.35852443,107840.0,107830.0,0.15951507]
[1750092307880,0.54402423,107830.0,107820.0,0.18549417]
[1750092308033,1.18303073,107830.0,107820.0,0.22473417]
[1750092308226,1.19230407,107830.0,107820.0,0.23400888]
[1750092308437,1.00080079,107830.0,107820.0,0.23400888]
[1750092308709,0.99152694,107830.0,107820.0,0.2340088]
[1750092308894,0.98698694,107830.0,107820.0,0.25255779]
[1750092309251,0.98698694,107830.0,107820.0,0.2340088]
[1750092309688,0.98698694,107830.0,107820.0,0.24328334]
[1750092309858,0.98698694,107830.0,107820.0,0.25255779]
[1750092310060,0.98698677,107830.0,107820.0,0.24328334]
[1750092310263,0.97771326,107830.0,107820.0,0.24328334]
[1750092310469,1.02412662,107830.0,107820.0,0.24328334]
[1750092310674,1.20960375,107830.0,107820.0,0.23400888]
[1750092310990,1.01485328,107830.0,107820.0,0.20404351]
[1750092311523,1.01485328,107830.0,107820.0,0.21331805]
[1750092311755,1.20033041,107830.0,107820.0,0.19476888]
[1750092311973,1.20033041,107830.0,107820.0,0.18549417]
[1750092312190,1.20033041,107830.0,107820.0,0.19476888]
[1750092312400,1.20033041,107830.0,107820.0,0.18549417]
[1750092312609,1.15873951,107830.0,107820.0,0.20404351]
[1750092312840,1.37212943,107830.0,107820.0,0.18549434]
[1750092313050,0.21331744,107820.0,107810.0,0.44564685]
[1750092313267,0.99491891,107820.0,107810.0,0.38133128]
[1750092313485,0.99491891,107820.0,107810.0,0.42984677]
[1750092313486,0.80014986,107820.0,107810.0,0.42984677]
[1750092313687,0.80014986,107820.0,107810.0,0.43912217]
[1750092313903,0.24940176,107820.0,107810.0,0.4641974]
[1750092314127,0.24936176,107820.0,107810.0,0.49269237]
[1750092314645,0.24936176,107820.0,107810.0,0.45345237]
[1750092314883,0.24936176,107820.0,107810.0,0.49269237]
[1750092315103,1.42105023,107820.0,107810.0,0.18545128]
[1750092315320,0.01854986,107810.0,107800.0,0.21331017]
[1750092315579,0.01854986,107810.0,107800.0,0.22472173]
[1750092315580,0.84177862,107810.0,107800.0,0.22472173]
[1750092315802,0.30957959,107810.0,107800.0,0.24899808]
[1750092316053,0.30957959,107810.0,107800.0,0.28707]
[1750092316054,0.14266262,107810.0,107800.0,0.28707]
[1750092316256,0.23375193,107810.0,107800.0,0.24783009]
[1750092316496,0.41926416,107810.0,107800.0,0.21337808]
[1750092316725,0.33745033,107810.0,107800.0,0.27117034]
[1750092316946,0.33745033,107810.0,107800.0,0.02062]
[1750092316947,0.86965064,107810.0,107800.0,0.02062]
[1750092317192,1.84774926,107810.0,107800.0,0.002]
[1750092317414,6.97544237,107810.0,107800.0,0.002]
[1750092317644,7.10851574,107810.0,107800.0,0.002]
[1750092317867,7.15074971,107810.0,107800.0,0.002]
[1750092318083,6.79040413,107810.0,107800.0,0.003]
[1750092318315,6.7350179,107810.0,107800.0,0.003]
[1750092318523,6.7350179,107810.0,107800.0,0.002]
[1750092318740,6.65981933,107810.0,107800.0,0.002]
[1750092319180,0.35855398,107790.0,107780.0,0.23561897]
[1750092319397,0.80281891,107790.0,107780.0,0.27113116]
[1750092319612,0.80281891,107790.0,107780.0,0.28040906]
[1750092319826,1.31646679,107790.0,107780.0,0.25603116]
[1750092320044,1.24086168,107790.0,107780.0,0.04028]
[1750092320279,1.29803246,107790.0,107780.0,0.04028]
[1750092320536,0.19484133,107780.0,107770.0,0.23196758]
[1750092320758,0.29108309,107780.0,107770.0,0.28152634]
[1750092321386,0.31896109,107780.0,107770.0,0.28152634]
[1750092321848,0.40297013,107780.0,107770.0,0.28152634]
[1750092322061,0.29108309,107780.0,107770.0,0.28152634]
[1750092323301,0.81400783,107780.0,107770.0,0.0165]
[1750092323514,0.19485933,107770.0,107760.0,0.26317103]
[1750092323724,0.0185576,107770.0,107760.0,0.31273039]
[1750092323937,0.30965878,107770.0,107760.0,0.04979979]
[1750092324185,0.30965878,107770.0,107760.0,0.09007979]
[1750092324413,0.30965878,107770.0,107760.0,0.25265439]
[1750092324615,0.97646476,107770.0,107760.0,0.06283698]
[1750092324823,0.97646476,107770.0,107760.0,0.06383698]
[1750092325031,0.98100476,107770.0,107760.0,0.06383698]
[1750092325261,1.07261398,107770.0,107760.0,0.02355698]
[1750092325473,1.44855398,107770.0,107760.0,0.03418882]
[1750092325707,1.44855398,107770.0,107760.0,0.03218882]
[1750092325901,1.47069671,107770.0,107760.0,0.03218882]
[1750092326116,1.47069671,107770.0,107760.0,0.03118882]
[1750092326330,1.44855398,107770.0,107760.0,0.03118882]
[1750092326538,1.47068641,107770.0,107760.0,0.03118702]
[1750092327657,1.49840151,107770.0,107760.0,0.01393184]
[1750092327886,1.54840151,107770.0,107760.0,0.01393184]
[1750092328342,2.0858671,107770.0,107760.0,0.0053]
[1750092328570,2.0858671,107770.0,107740.0,0.002]
[1750092328571,5.63131572,107750.0,107740.0,0.002]
[1750092328800,5.63131572,107750.0,107740.0,0.02787195]
[1750092328801,6.52190841,107750.0,107740.0,0.02787195]
[1750092329239,6.59979941,107750.0,107740.0,0.02787195]
[1750092329451,6.59979941,107750.0,107740.0,0.01925]
[1750092329883,6.59979941,107750.0,107740.0,0.01939183]
[1750092330298,6.60379941,107750.0,107740.0,0.01939183]
[1750092330749,6.60379941,107750.0,107740.0,0.00214183]
[1750092330970,6.60679941,107750.0,107740.0,0.00214183]
[1750092331403,6.60679941,107750.0,107740.0,0.00014183]
[1750092331404,6.648982,107750.0,107740.0,0.00014183]
[1750092331622,6.648982,107750.0,107720.0,0.002]
[1750092331623,0.20885362,107730.0,107720.0,0.03732]
[1750092331844,0.20885362,107730.0,107710.0,0.04032]
[1750092331845,0.53494978,107720.0,107710.0,0.04032]
[1750092332094,0.53494978,107720.0,107700.0,0.23375]
[1750092332095,0.19496796,107710.0,107700.0,0.23375]
[1750092332330,0.96741446,107710.0,107700.0,0.22244664]
[1750092332539,0.44448972,107710.0,107700.0,0.24706664]
[1750092332756,0.47238672,107710.0,107700.0,0.24706664]
[1750092332999,0.47238672,107710.0,107700.0,0.45133732]
[1750092333222,0.29598652,107710.0,107700.0,0.42958646]
[1750092333428,0.4816703,107710.0,107700.0,0.47919117]
[1750092333653,1.00887914,107710.0,107700.0,0.49640286]
[1750092333859,0.81391126,107710.0,107700.0,0.49640243]
[1750092334065,1.03813985,107710.0,107700.0,0.26427833]
[1750092334277,1.34423504,107710.0,107700.0,0.22395833]
[1750092334442,1.34423504,107710.0,107700.0,0.06819833]
[1750092334649,0.8373103,107710.0,107700.0,0.06819833]
[1750092334868,1.45638426,107710.0,107700.0,0.0403673]
[1750092335088,6.52763859,107710.0,107700.0,0.05673268]
[1750092335236,5.98345952,107710.0,107700.0,0.05673268]
[1750092335435,6.50738426,107710.0,107700.0,0.05673268]
[1750092335648,0.21819539,107700.0,107690.0,0.24460761]
[1750092335849,0.83736189,107700.0,107690.0,0.22152312]
[1750092336054,0.83736189,107700.0,107690.0,0.26184312]
[1750092336258,0.83736189,107700.0,107690.0,0.22152312]
[1750092336461,0.86339538,107700.0,107690.0,0.25255738]
[1750092336864,0.86339538,107700.0,107690.0,0.27112905]
[1750092337114,0.83736189,107700.0,107690.0,0.23680905]
[1750092337281,0.27789595,107700.0,107690.0,0.29569991]
[1750092337486,0.98652171,107700.0,107690.0,0.28641461]
[1750092337701,0.98652171,107700.0,107690.0,0.27712905]
[1750092337912,0.83736171,107700.0,107690.0,0.28641461]
[1750092338112,0.99128171,107700.0,107690.0,0.29570009]
[1750092338310,0.99128171,107700.0,107690.0,0.28969966]
[1750092338515,0.99228171,107700.0,107690.0,0.28969966]
[1750092338718,0.80758069,107700.0,107690.0,0.28969966]
[1750092338919,0.90372991,107700.0,107690.0,0.28969922]
[1750092339123,0.79369582,107700.0,107690.0,0.28969922]
[1750092339363,0.80298069,107700.0,107690.0,0.28969922]
[1750092339529,0.80298069,107700.0,107690.0,0.2895026]
[1750092339745,0.99796719,107700.0,107690.0,0.26164643]
[1750092339949,0.9933224,107700.0,107690.0,0.25236113]
[1750092340176,6.13947162,107700.0,107690.0,0.26164695]
[1750092340346,5.31612612,107700.0,107690.0,0.27231505]
[1750092340551,0.09824176,107700.0,107690.0,0.28948635]
[1750092340752,0.09824176,107700.0,107690.0,0.28583635]
[1750092340753,0.002,107700.0,107690.0,0.28583635]
[1750092340975,0.002,107700.0,107690.0,0.32615635]
[1750092341419,0.002,107700.0,107690.0,0.28583635]
[1750092341621,0.002,107700.0,107690.0,0.32615635]
[1750092342072,0.002,107700.0,107690.0,0.84908109]
[1750092342463,0.002,107700.0,107690.0,0.32615635]
[1750092342658,0.002,107700.0,107690.0,0.84908109]
[1750092342881,0.001,107700.0,107690.0,0.84908109]
[1750092343040,1.11559568,107730.0,107720.0,0.20423292]
[1750092343215,1.11559568,107730.0,107720.0,0.26171552]
[1750092343216,1.4531048,107730.0,107720.0,0.26171552]
[1750092343429,1.4531048,107730.0,107720.0,0.2709985]
[1750092343430,0.93018006,107730.0,107720.0,0.2709985]
[1750092343639,1.4531048,107730.0,107720.0,0.2213957]
[1750092343851,1.4531048,107730.0,107720.0,0.27099868]
[1750092344050,1.4531048,107730.0,107720.0,0.0171626]
[1750092344051,1.43454048,107730.0,107720.0,0.0171626]
[1750092344264,1.43454048,107730.0,107720.0,0.0574826]
[1750092344472,6.48918048,107730.0,107720.0,0.0171626]
[1750092344668,5.98165574,107730.0,107720.0,0.0171626]
[1750092344880,0.19494978,107720.0,107710.0,0.23528788]
[1750092345090,1.2502655,107720.0,107710.0,0.05749654]
[1750092345349,1.2549055,107720.0,107710.0,0.01717654]
[1750092345585,1.2549055,107720.0,107710.0,0.05749654]
[1750092345823,1.2549055,107720.0,107710.0,0.01717654]
[1750092346055,0.18568378,107710.0,107700.0,0.22902488]
[1750092346269,0.30049348,107710.0,107700.0,0.28946257]
[1750092346486,0.11480935,107710.0,107700.0,0.29874701]
[1750092346702,0.10552525,107710.0,107700.0,0.29874701]
[1750092346929,0.11480892,107710.0,107700.0,0.32324511]
[1750092347168,0.09624176,107710.0,107700.0,0.32324344]
[1750092347387,0.36884859,107720.0,107710.0,0.2135353]
[1750092347599,0.36884859,107720.0,107710.0,0.26790132]
[1750092347600,0.44652439,107720.0,107710.0,0.26790132]
[1750092347808,0.46747994,107720.0,107710.0,0.26790132]
[1750092348027,0.45819713,107720.0,107710.0,0.26790132]
[1750092348243,0.46747985,107720.0,107710.0,0.26790132]
[1750092348714,0.09624176,107720.0,107710.0,0.26790132]
[1750092348931,0.09724176,107720.0,107710.0,0.26790132]
[1750092349156,0.09724176,107720.0,107710.0,0.46318132]
[1750092349157,0.001,107720.0,107710.0,0.46318132]
[1750092349387,0.001,107720.0,107710.0,0.26790132]
[1750092349388,0.10652448,107720.0,107710.0,0.26790132]
[1750092349621,0.001,107720.0,107710.0,0.30878132]
[1750092349858,0.09824176,107720.0,107710.0,0.26790132]
[1750092350070,0.04602418,107720.0,107710.0,0.46318132]
[1750092350300,0.002,107720.0,107710.0,0.46318132]
[1750092352650,0.002,107720.0,107710.0,0.26790132]
[1750092352855,0.01128255,107720.0,107710.0,0.30878132]
[1750092353070,0.02056518,107720.0,107710.0,0.2915853]
[1750092353700,0.002,107720.0,107710.0,0.2915853]
[1750092356487,0.02056553,107720.0,107710.0,0.2915853]
[1750092356695,0.01128272,107720.0,107710.0,0.2915853]
[1750092356904,0.002,107720.0,107710.0,0.2915853]
[1750092357104,0.02056518,107720.0,107710.0,0.2487453]
[1750092357330,0.02984799,107720.0,107710.0,0.4439453]
[1750092357545,0.02056518,107720.0,107710.0,0.4439453]
[1750092357760,0.13537281,107720.0,107710.0,0.2328453]
[1750092357969,0.85324741,107720.0,107710.0,0.25441564]
[1750092358178,0.8661251,107720.0,107710.0,0.26369931]
[1750092358380,0.8661251,107720.0,107710.0,0.25441564]
[1750092358599,0.34320036,107720.0,107710.0,0.25441564]
[1750092359032,0.32104012,107720.0,107710.0,0.26369931]
[1750092359253,0.32104012,107720.0,107710.0,0.25441564]
[1750092359474,0.32104012,107720.0,107710.0,0.22281931]
[1750092359681,0.31175749,107720.0,107710.0,0.21353582]
[1750092359895,0.31175749,107720.0,107710.0,0.25441582]
[1750092360122,0.30247468,107720.0,107710.0,0.25441582]
[1750092360341,0.38005752,107720.0,107710.0,0.18568378]
[1750092360552,0.92430226,107720.0,107710.0,0.23584796]
[1750092360769,0.31088854,107720.0,107710.0,0.2544159]
[1750092360989,0.2887283,107720.0,107710.0,0.24513206]
[1750092361218,0.2887283,107720.0,107710.0,0.04088]
[1750092361436,0.2887283,107720.0,107710.0,0.24513206]
[1750092361663,0.2887283,107720.0,107710.0,0.25441607]
[1750092361871,0.29801154,107720.0,107710.0,0.27298366]
[1750092362083,0.11680746,107720.0,107710.0,0.27298306]
[1750092362298,0.27104763,107720.0,107710.0,0.27298306]
[1750092362799,0.27132763,107720.0,107710.0,0.27590306]
[1750092363022,0.47556038,107720.0,107710.0,0.26661948]
[1750092363240,0.49772062,107720.0,107710.0,0.26369948]
[1750092363451,0.49772062,107720.0,107710.0,0.27298315]
[1750092363663,0.312054,107720.0,107710.0,0.27298263]
[1750092363874,0.48484362,107720.0,107710.0,0.26369905]
[1750092364127,0.49772114,107720.0,107710.0,0.25441538]
[1750092364342,0.4791551,107720.0,107710.0,0.23584779]
[1750092364554,0.46987186,107720.0,107710.0,0.22656378]
[1750092364769,0.46987186,107720.0,107710.0,0.04088]
[1750092364987,0.47469186,107720.0,107710.0,0.04088]
[1750092365209,0.47469186,107720.0,107710.0,0.24513181]
[1750092365670,0.0185675,107710.0,107700.0,0.21352402]
[1750092365941,0.10552525,107710.0,107700.0,0.25732402]
[1750092366179,0.10552525,107710.0,107700.0,0.27302402]
[1750092366428,0.11480918,107710.0,107700.0,0.28912402]
[1750092366643,0.13337686,107710.0,107700.0,0.26081975]
[1750092366861,0.13337686,107710.0,107700.0,0.26373975]
[1750092367075,0.36590989,107710.0,107700.0,0.26574018]
[1750092367284,0.35662691,107710.0,107700.0,0.24712078]
[1750092367509,0.34734298,107710.0,107700.0,0.25640548]
[1750092367780,0.34734298,107710.0,107700.0,0.002]
[1750092367781,6.28750371,107710.0,107700.0,0.002]
[1750092368016,6.33737905,107710.0,107700.0,0.002]
[1750092368231,6.3743032,107710.0,107700.0,0.002]
[1750092368456,6.3465881,107710.0,107700.0,0.002]
[1750092369350,6.3465881,107710.0,107700.0,0.19498607]
[1750092369579,0.56284017,107700.0,107690.0,0.25450193]
[1750092369802,0.69052653,107700.0,107690.0,0.25450211]
[1750092370017,0.73104343,107700.0,107690.0,0.19505107]
[1750092370241,0.75894543,107700.0,107690.0,0.23593107]
[1750092370513,0.69057503,107700.0,107690.0,0.24521663]
[1750092370720,0.69057503,107700.0,107690.0,0.25450246]
[1750092371152,0.69057503,107700.0,107690.0,0.25011681]
[1750092371373,0.69057503,107700.0,107690.0,0.25940237]
[1750092371817,0.69057503,107700.0,107690.0,0.25011681]
[1750092372032,0.69257503,107700.0,107690.0,0.26868776]
[1750092372250,0.120402,107700.0,107690.0,0.30907306]
[1750092372471,0.11681082,107700.0,107690.0,0.30907306]
[1750092372695,0.1075262,107700.0,107690.0,0.30907306]
[1750092372944,0.20253769,107700.0,107690.0,0.30907306]
[1750092373174,0.002,107700.0,107690.0,0.30907306]
[1750092373851,0.01128436,107700.0,107690.0,0.30907306]
[1750092374071,0.002,107700.0,107690.0,0.30907306]
[1750092374473,0.01128427,107700.0,107690.0,0.30907306]
[1750092374962,0.02985316,107700.0,107690.0,0.30907306]
[1750092375171,0.02985307,107700.0,107690.0,0.30907306]
[1750092375396,0.14466415,107700.0,107690.0,0.24759306]
[1750092375629,0.14466475,107700.0,107690.0,0.27311306]
[1750092376060,0.14466535,107700.0,107690.0,0.27311306]
[1750092376273,0.14466535,107700.0,107690.0,0.23219306]
[1750092376488,0.14466535,107700.0,107690.0,0.27311306]
[1750092376725,0.11681073,107700.0,107690.0,0.27311306]
[1750092376947,0.12609569,107700.0,107690.0,0.27311306]
[1750092377159,0.22224491,107700.0,107690.0,0.27311306]
[1750092377610,0.12609569,107700.0,107690.0,0.27311306]
[1750092377815,0.12609561,107700.0,107690.0,0.27311306]
[1750092378074,0.13538048,107700.0,107690.0,0.27311306]
[1750092378294,0.12609552,107700.0,107690.0,0.27311306]
[1750092378519,0.13538039,107700.0,107690.0,0.27311306]
[1750092378954,0.1075262,107700.0,107690.0,0.27311306]
[1750092379164,0.12609552,107700.0,107690.0,0.27801306]